[Event "Titled Tuesday Blitz March 28 Late 2023"]
[White "Martinez Alcantara, Jose Eduardo"]
[Black "Bernadskiy, Vitaliy"]
[WhiteFideId "3805662"]
[BlackFideId "14100371"]
[WhiteElo "2712"]
[BlackElo "2488"]
[Result "1-0"]
[Round "04"]
[TimeControl "180+2"]
[Date "2023.03.28"]
[WhiteClock "0:00:15"]
[BlackClock "0:00:03"]

1. e4 {[%clk 0:02:55]}  e5 {[%clk 0:02:59]} 2. Nf3 {[%clk 0:02:56]}  Nc6 {[%clk 0:03:00]} 3. Bb5 {[%clk 0:02:56]}  Nf6 {[%clk 0:03:00]} 4. O-O {[%clk 0:02:56]}  Nxe4 {[%clk 0:02:59]} 5. Re1 {[%clk 0:02:56]}  Nd6 {[%clk 0:02:59]} 6. Nxe5 {[%clk 0:02:57]}  Be7 {[%clk 0:02:59]} 7. Bf1 {[%clk 0:02:58]}  Nxe5 {[%clk 0:02:59]} 8. Rxe5 {[%clk 0:02:59]}  O-O {[%clk 0:02:59]} 9. Nc3 {[%clk 0:02:59]}  Ne8 {[%clk 0:02:54]} 10. Nd5 {[%clk 0:02:59]}  Bd6 {[%clk 0:02:54]} 11. Re1 {[%clk 0:02:59]}  c6 {[%clk 0:02:54]} 12. Ne3 {[%clk 0:03:00]}  Be7 {[%clk 0:02:53]} 13. c4 {[%clk 0:02:57]}  Bf6 {[%clk 0:02:32]} 14. d4 {[%clk 0:02:57]}  d5 {[%clk 0:02:32]} 15. cxd5 {[%clk 0:02:57]}  cxd5 {[%clk 0:02:32]} 16. Bd2 {[%clk 0:02:49]}  Nc7 {[%clk 0:02:25]} 17. Qb3 {[%clk 0:02:30]}  Bxd4 {[%clk 0:02:11]} 18. Rad1 {[%clk 0:02:29]}  Re8 {[%clk 0:02:09]} 19. Ba5 {[%clk 0:02:25]}  Bxe3 {[%clk 0:02:01]} 20. Rxe3 {[%clk 0:02:23]}  Rxe3 {[%clk 0:01:53]} 21. Qxe3 {[%clk 0:02:22]}  b6 {[%clk 0:01:44]} 22. Bc3 {[%clk 0:02:21]}  Ne6 {[%clk 0:01:41]} 23. Qg3 {[%clk 0:01:57]}  Bb7 {[%clk 0:01:38]} 24. Bd3 {[%clk 0:01:50]}  d4 {[%clk 0:01:35]} 25. Bd2 {[%clk 0:01:22]}  Rc8 {[%clk 0:01:29]} 26. h4 {[%clk 0:01:21]}  Qd5 {[%clk 0:01:26]} 27. b3 {[%clk 0:01:19]}  Rd8 {[%clk 0:00:40]} 28. Re1 {[%clk 0:01:14]}  Qd6 {[%clk 0:00:40]} 29. Qg4 {[%clk 0:01:13]}  Bd5 {[%clk 0:00:28]} 30. h5 {[%clk 0:01:07]}  Nc5 {[%clk 0:00:28]} 31. h6 {[%clk 0:01:04]}  g6 {[%clk 0:00:13]} 32. Qxd4 {[%clk 0:00:58]}  Qf8 {[%clk 0:00:08]} 33. Bc3 {[%clk 0:00:52]}  f6 {[%clk 0:00:09]} 34. Bc4 {[%clk 0:00:49]}  Bxc4 {[%clk 0:00:08]} 35. Qxc4+ {[%clk 0:00:50]}  Qf7 {[%clk 0:00:08]} 36. Re7 {[%clk 0:00:40]}  Qxc4 {[%clk 0:00:07]} 37. bxc4 {[%clk 0:00:40]}  Rd7 {[%clk 0:00:06]} 38. Bxf6 {[%clk 0:00:25]}  Rxe7 {[%clk 0:00:06]} 39. Bxe7 {[%clk 0:00:26]}  Nd3 {[%clk 0:00:04]} 40. Bd6 {[%clk 0:00:26]}  Kf7 {[%clk 0:00:04]} 41. Kf1 {[%clk 0:00:25]}  Ke6 {[%clk 0:00:04]} 42. Bb8 {[%clk 0:00:26]}  a6 {[%clk 0:00:03]} 43. Ba7 {[%clk 0:00:26]}  Nb2 {[%clk 0:00:03]} 44. Bxb6 {[%clk 0:00:21]}  Nxc4 {[%clk 0:00:03]} 45. Bd4 {[%clk 0:00:22]}  Kf5 {[%clk 0:00:03]} 46. Ke2 {[%clk 0:00:21]}  Kg5 {[%clk 0:00:03]} 47. Kd3 {[%clk 0:00:21]}  Nd6 {[%clk 0:00:03]} 48. Be3+ {[%clk 0:00:21]}  Kg4 {[%clk 0:00:03]} 49. Bd2 {[%clk 0:00:18]}  Nf5 {[%clk 0:00:03]} 50. a4 {[%clk 0:00:15]}  Nh4 {[%clk 0:00:03]} 51. f3+ {[%clk 0:00:14]}  Kh5 {[%clk 0:00:03]} 52. g4# {[%clk 0:00:15]} 1-0


[Site "https://www.chess.com"]

[Event "Titled Tuesday Blitz March 28 Late 2023"]
[White "Pakleza, Zbigniew"]
[Black "Maghsoodloo, Parham"]
[WhiteFideId "1119290"]
[BlackFideId "12539929"]
[WhiteElo "2410"]
[BlackElo "2647"]
[Result "0-1"]
[Round "04"]
[TimeControl "180+2"]
[Date "2023.03.28"]
[WhiteClock "0:00:03"]
[BlackClock "0:00:05"]

1. d4 {[%clk 0:03:00]}  Nf6 {[%clk 0:03:00]} 2. Nf3 {[%clk 0:03:01]}  d5 {[%clk 0:02:59]} 3. Bf4 {[%clk 0:03:01]}  c5 {[%clk 0:02:57]} 4. c3 {[%clk 0:03:01]}  Qb6 {[%clk 0:02:45]} 5. Qb3 {[%clk 0:03:00]}  c4 {[%clk 0:02:45]} 6. Qc2 {[%clk 0:03:01]}  g6 {[%clk 0:02:40]} 7. Nbd2 {[%clk 0:02:57]}  Bf5 {[%clk 0:02:40]} 8. Qc1 {[%clk 0:02:58]}  Nc6 {[%clk 0:02:40]} 9. h3 {[%clk 0:02:56]}  h5 {[%clk 0:02:37]} 10. e3 {[%clk 0:02:55]}  Qd8 {[%clk 0:02:33]} 11. Be2 {[%clk 0:02:54]}  b5 {[%clk 0:02:32]} 12. Ne5 {[%clk 0:02:52]}  Nxe5 {[%clk 0:02:31]} 13. Bxe5 {[%clk 0:02:53]}  Bg7 {[%clk 0:02:30]} 14. O-O {[%clk 0:02:51]}  O-O {[%clk 0:02:31]} 15. Bf3 {[%clk 0:02:51]}  Bd3 {[%clk 0:02:28]} 16. Re1 {[%clk 0:02:51]}  Ne4 {[%clk 0:02:29]} 17. Bxg7 {[%clk 0:02:42]}  Kxg7 {[%clk 0:02:29]} 18. Be2 {[%clk 0:02:38]}  Bxe2 {[%clk 0:02:22]} 19. Nxe4 {[%clk 0:02:30]}  dxe4 {[%clk 0:02:21]} 20. Rxe2 {[%clk 0:02:31]}  h4 {[%clk 0:02:20]} 21. b3 {[%clk 0:02:25]}  Qd5 {[%clk 0:02:20]} 22. Rb2 {[%clk 0:02:16]}  Rfc8 {[%clk 0:02:19]} 23. Rab1 {[%clk 0:02:17]}  a6 {[%clk 0:02:15]} 24. a4 {[%clk 0:02:03]}  cxb3 {[%clk 0:02:09]} 25. axb5 {[%clk 0:02:02]}  axb5 {[%clk 0:01:59]} 26. Rxb3 {[%clk 0:02:01]}  Rab8 {[%clk 0:01:56]} 27. Qf1 {[%clk 0:01:57]}  Rc4 {[%clk 0:01:54]} 28. Qe2 {[%clk 0:01:50]}  f5 {[%clk 0:01:49]} 29. Qb2 {[%clk 0:01:47]}  Qd6 {[%clk 0:01:34]} 30. Rb4 {[%clk 0:01:15]}  Rbc8 {[%clk 0:01:31]} 31. Rxb5 {[%clk 0:01:09]}  Rxc3 {[%clk 0:01:31]} 32. Rc5 {[%clk 0:01:08]}  R8xc5 {[%clk 0:00:57]} 33. dxc5 {[%clk 0:01:09]}  Qe5 {[%clk 0:00:58]} 34. c6 {[%clk 0:00:57]}  Qf6 {[%clk 0:00:58]} 35. Rd1 {[%clk 0:00:24]}  Rxc6 {[%clk 0:00:57]} 36. Qb8 {[%clk 0:00:24]}  Rd6 {[%clk 0:00:50]} 37. Rc1 {[%clk 0:00:20]}  Qe5 {[%clk 0:00:45]} 38. Qb7 {[%clk 0:00:18]}  Rd8 {[%clk 0:00:41]} 39. Qb3 {[%clk 0:00:16]}  Rd2 {[%clk 0:00:33]} 40. Qb4 {[%clk 0:00:13]}  Qd6 {[%clk 0:00:33]} 41. Qc3+ {[%clk 0:00:13]}  Kh7 {[%clk 0:00:33]} 42. Qc8 {[%clk 0:00:10]}  Rd1+ {[%clk 0:00:30]} 43. Rxd1 {[%clk 0:00:10]}  Qxd1+ {[%clk 0:00:30]} 44. Kh2 {[%clk 0:00:11]}  Qd6+ {[%clk 0:00:24]} 45. Kg1 {[%clk 0:00:11]}  Kg7 {[%clk 0:00:23]} 46. Qc3+ {[%clk 0:00:10]}  Qf6 {[%clk 0:00:22]} 47. Qc8 {[%clk 0:00:11]}  g5 {[%clk 0:00:21]} 48. Qe8 {[%clk 0:00:10]}  f4 {[%clk 0:00:20]} 49. Qh5 {[%clk 0:00:11]}  Qa1+ {[%clk 0:00:10]} 50. Kh2 {[%clk 0:00:11]}  Qe5 {[%clk 0:00:11]} 51. Kg1 {[%clk 0:00:07]}  Qf5 {[%clk 0:00:08]} 52. Qe8 {[%clk 0:00:05]}  Qc5 {[%clk 0:00:04]} 53. Kh2 {[%clk 0:00:02]}  fxe3 {[%clk 0:00:04]} 54. fxe3 {[%clk 0:00:03]}  Kf6 {[%clk 0:00:03]} 55. Qf8+ {[%clk 0:00:02]}  Ke6 {[%clk 0:00:03]} 56. Qg8+ {[%clk 0:00:03]}  Kd7 {[%clk 0:00:04]} 57. Qf7 {[%clk 0:00:01]}  Kd6 {[%clk 0:00:02]} 58. Qg6+ {[%clk 0:00:02]}  e6 {[%clk 0:00:03]} 59. Qf7 {[%clk 0:00:01]}  Qxe3 {[%clk 0:00:03]} 60. Qf8+ {[%clk 0:00:01]}  Kd5 {[%clk 0:00:03]} 61. Qd8+ {[%clk 0:00:01]}  Kc4 {[%clk 0:00:04]} 62. Qc7+ {[%clk 0:00:01]}  Qc5 {[%clk 0:00:03]} 63. Qf7 {[%clk 0:00:01]}  Qe5+ {[%clk 0:00:03]} 64. Kh1 {[%clk 0:00:02]}  e3 {[%clk 0:00:04]} 65. Qf1+ {[%clk 0:00:02]}  e2 {[%clk 0:00:05]} 66. Qe1 {[%clk 0:00:03]}  Kd3 {[%clk 0:00:05]} 67. Qb1+ {[%clk 0:00:03]}  Kd2 {[%clk 0:00:05]} 68. Qb2+ {[%clk 0:00:03]}  Qxb2 {[%clk 0:00:05]} 0-1


[Site "https://www.chess.com"]

[Event "Titled Tuesday Blitz March 28 Late 2023"]
[White "Ozen, Bahadir"]
[Black "Drygalov, Andrey"]
[WhiteFideId "6337058"]
[BlackFideId "24171735"]
[WhiteElo "2503"]
[BlackElo "2471"]
[Result "0-1"]
[Round "04"]
[TimeControl "180+2"]
[Date "2023.03.28"]
[WhiteClock "0:00:18"]
[BlackClock "0:00:15"]

1. h3 {[%clk 0:03:00]}  d5 {[%clk 0:02:57]} 2. Nf3 {[%clk 0:03:00]}  Nf6 {[%clk 0:02:56]} 3. c3 {[%clk 0:02:53]}  c5 {[%clk 0:02:53]} 4. d4 {[%clk 0:02:53]}  Nc6 {[%clk 0:02:53]} 5. e3 {[%clk 0:02:53]}  e6 {[%clk 0:02:50]} 6. Nbd2 {[%clk 0:02:53]}  Qc7 {[%clk 0:02:49]} 7. Bd3 {[%clk 0:02:51]}  Bd6 {[%clk 0:02:49]} 8. dxc5 {[%clk 0:02:52]}  Bxc5 {[%clk 0:02:50]} 9. O-O {[%clk 0:02:51]}  O-O {[%clk 0:02:49]} 10. b4 {[%clk 0:02:51]}  Be7 {[%clk 0:02:49]} 11. Bb2 {[%clk 0:02:50]}  e5 {[%clk 0:02:49]} 12. e4 {[%clk 0:02:47]}  dxe4 {[%clk 0:02:46]} 13. Nxe4 {[%clk 0:02:48]}  Nh5 {[%clk 0:02:46]} 14. b5 {[%clk 0:02:34]}  Nf4 {[%clk 0:02:00]} 15. bxc6 {[%clk 0:02:10]}  Rd8 {[%clk 0:01:59]} 16. Ne1 {[%clk 0:02:09]}  Qxc6 {[%clk 0:01:55]} 17. Qf3 {[%clk 0:02:04]}  f5 {[%clk 0:01:53]} 18. Bc2 {[%clk 0:01:19]}  fxe4 {[%clk 0:01:40]} 19. Qxe4 {[%clk 0:01:16]}  Qxe4 {[%clk 0:01:29]} 20. Bxe4 {[%clk 0:01:16]}  Rd2 {[%clk 0:01:27]} 21. Rb1 {[%clk 0:00:58]}  Be6 {[%clk 0:01:03]} 22. Nf3 {[%clk 0:00:58]}  Re2 {[%clk 0:01:03]} 23. Bxb7 {[%clk 0:00:33]}  Rb8 {[%clk 0:00:59]} 24. Bc1 {[%clk 0:00:29]}  Nd3 {[%clk 0:00:36]} 25. Be3 {[%clk 0:00:28]}  Rxa2 {[%clk 0:00:35]} 26. Bd5 {[%clk 0:00:29]}  Bxd5 {[%clk 0:00:31]} 27. Rxb8+ {[%clk 0:00:29]}  Kf7 {[%clk 0:00:31]} 28. Rd1 {[%clk 0:00:30]}  e4 {[%clk 0:00:31]} 29. Ne5+ {[%clk 0:00:28]}  Ke6 {[%clk 0:00:26]} 30. Nxd3 {[%clk 0:00:28]}  exd3 {[%clk 0:00:26]} 31. Rxd3 {[%clk 0:00:29]}  Ra1+ {[%clk 0:00:27]} 32. Kh2 {[%clk 0:00:27]}  Bd6+ {[%clk 0:00:27]} 33. f4 {[%clk 0:00:27]}  Bxb8 {[%clk 0:00:27]} 34. Kg3 {[%clk 0:00:22]}  Ra2 {[%clk 0:00:26]} 35. Bd2 {[%clk 0:00:19]}  Bxg2 {[%clk 0:00:21]} 36. Rd8 {[%clk 0:00:16]}  Bc7 {[%clk 0:00:19]} 37. Rc8 {[%clk 0:00:16]}  Kd7 {[%clk 0:00:15]} 38. Rg8 {[%clk 0:00:16]}  Rxd2 {[%clk 0:00:15]} 39. Rxg7+ {[%clk 0:00:17]}  Kc6 {[%clk 0:00:15]} 40. c4 {[%clk 0:00:18]}  Be4 {[%clk 0:00:15]} 41. Re7 {[%clk 0:00:18]}  Rg2+ {[%clk 0:00:15]} 42. Kh4 {[%clk 0:00:18]}  Bd8 {[%clk 0:00:15]} 0-1


[Site "https://www.chess.com"]

[Event "Titled Tuesday Blitz March 28 Late 2023"]
[White "Riehle, Marco"]
[Black "Naroditsky, Daniel"]
[WhiteFideId "12904392"]
[BlackFideId "2026961"]
[WhiteElo "2462"]
[BlackElo "2633"]
[Result "0-1"]
[Round "04"]
[TimeControl "180+2"]
[Date "2023.03.28"]
[WhiteClock "0:01:47"]
[BlackClock "0:01:03"]

1. e4 {[%clk 0:02:58]}  d6 {[%clk 0:02:56]} 2. d4 {[%clk 0:02:58]}  Nc6 {[%clk 0:02:57]} 3. d5 {[%clk 0:02:44]}  Nb8 {[%clk 0:02:56]} 4. f4 {[%clk 0:02:33]}  Nf6 {[%clk 0:02:55]} 5. Bd3 {[%clk 0:02:24]}  c6 {[%clk 0:02:54]} 6. c4 {[%clk 0:02:24]}  g6 {[%clk 0:02:51]} 7. Nf3 {[%clk 0:02:24]}  Bg7 {[%clk 0:02:51]} 8. Nc3 {[%clk 0:02:22]}  O-O {[%clk 0:02:49]} 9. O-O {[%clk 0:02:22]}  a6 {[%clk 0:02:45]} 10. Be3 {[%clk 0:02:18]}  Ng4 {[%clk 0:02:40]} 11. Bd4 {[%clk 0:02:16]}  Bxd4+ {[%clk 0:02:39]} 12. Nxd4 {[%clk 0:02:17]}  Ne3 {[%clk 0:02:39]} 13. Qd2 {[%clk 0:02:17]}  Nxf1 {[%clk 0:02:39]} 14. Rxf1 {[%clk 0:02:18]}  Qb6 {[%clk 0:02:25]} 15. Bb1 {[%clk 0:02:14]}  e5 {[%clk 0:02:14]} 16. dxe6 {[%clk 0:02:11]}  fxe6 {[%clk 0:02:15]} 17. Kh1 {[%clk 0:02:10]}  Qc7 {[%clk 0:02:03]} 18. Nf3 {[%clk 0:02:01]}  e5 {[%clk 0:01:48]} 19. f5 {[%clk 0:02:00]}  gxf5 {[%clk 0:01:32]} 20. exf5 {[%clk 0:01:59]}  Bxf5 {[%clk 0:01:20]} 21. Nh4 {[%clk 0:01:54]}  Bxb1 {[%clk 0:01:14]} 22. Qg5+ {[%clk 0:01:54]}  Qg7 {[%clk 0:01:11]} 23. Rxf8+ {[%clk 0:01:53]}  Kxf8 {[%clk 0:01:12]} 24. Qd8+ {[%clk 0:01:54]}  Kf7 {[%clk 0:01:12]} 25. Nxb1 {[%clk 0:01:50]}  Qf6 {[%clk 0:01:03]} 26. Qd7+ {[%clk 0:01:47]}  Nxd7 {[%clk 0:01:03]} 0-1


[Site "https://www.chess.com"]

[Event "Titled Tuesday Blitz March 28 Late 2023"]
[White "Holt, Conrad"]
[Black "Lazavik, Denis"]
[WhiteFideId "2034387"]
[BlackFideId "13515110"]
[WhiteElo "2592"]
[BlackElo "2560"]
[Result "0-1"]
[Round "04"]
[TimeControl "180+2"]
[Date "2023.03.28"]
[WhiteClock "0:00:02"]
[BlackClock "0:00:06"]

1. d4 {[%clk 0:03:00]}  Nf6 {[%clk 0:02:57]} 2. c4 {[%clk 0:03:00]}  e6 {[%clk 0:02:58]} 3. Nc3 {[%clk 0:03:01]}  Bb4 {[%clk 0:02:58]} 4. Qc2 {[%clk 0:03:01]}  c5 {[%clk 0:02:57]} 5. dxc5 {[%clk 0:03:01]}  O-O {[%clk 0:02:57]} 6. a3 {[%clk 0:03:00]}  Bxc5 {[%clk 0:02:57]} 7. Nf3 {[%clk 0:02:59]}  d5 {[%clk 0:02:57]} 8. Bg5 {[%clk 0:02:55]}  dxc4 {[%clk 0:02:50]} 9. e3 {[%clk 0:02:51]}  h6 {[%clk 0:02:46]} 10. Rd1 {[%clk 0:02:43]}  Nbd7 {[%clk 0:02:46]} 11. Bxf6 {[%clk 0:02:31]}  Qxf6 {[%clk 0:02:45]} 12. Bxc4 {[%clk 0:02:23]}  Qe7 {[%clk 0:02:41]} 13. O-O {[%clk 0:02:14]}  Nf6 {[%clk 0:02:33]} 14. Ne4 {[%clk 0:02:02]}  Bb6 {[%clk 0:02:32]} 15. Rd2 {[%clk 0:01:43]}  Nxe4 {[%clk 0:02:00]} 16. Qxe4 {[%clk 0:01:43]}  f5 {[%clk 0:02:00]} 17. Qe5 {[%clk 0:01:24]}  Bc7 {[%clk 0:01:55]} 18. Qb5 {[%clk 0:01:25]}  a6 {[%clk 0:01:52]} 19. Qb4 {[%clk 0:01:18]}  Qxb4 {[%clk 0:01:42]} 20. axb4 {[%clk 0:01:19]}  b5 {[%clk 0:01:38]} 21. Bb3 {[%clk 0:01:16]}  Kf7 {[%clk 0:01:34]} 22. Rc1 {[%clk 0:01:13]}  Bd8 {[%clk 0:01:03]} 23. Ne5+ {[%clk 0:01:10]}  Kf6 {[%clk 0:01:03]} 24. f4 {[%clk 0:00:57]}  Be7 {[%clk 0:01:02]} 25. Rd4 {[%clk 0:00:37]}  a5 {[%clk 0:00:51]} 26. bxa5 {[%clk 0:00:30]}  Rxa5 {[%clk 0:00:51]} 27. Kf2 {[%clk 0:00:17]}  g5 {[%clk 0:00:48]} 28. Rc7 {[%clk 0:00:13]}  Ra6 {[%clk 0:00:41]} 29. Nd7+ {[%clk 0:00:08]}  Bxd7 {[%clk 0:00:40]} 30. Rdxd7 {[%clk 0:00:09]}  Re8 {[%clk 0:00:40]} 31. Rb7 {[%clk 0:00:09]}  b4 {[%clk 0:00:39]} 32. Bd1 {[%clk 0:00:09]}  Rd6 {[%clk 0:00:36]} 33. Rxd6 {[%clk 0:00:08]}  Bxd6 {[%clk 0:00:36]} 34. Bh5 {[%clk 0:00:08]}  Rf8 {[%clk 0:00:37]} 35. Rb6 {[%clk 0:00:08]}  Be7 {[%clk 0:00:37]} 36. g3 {[%clk 0:00:07]}  Rd8 {[%clk 0:00:36]} 37. Ke2 {[%clk 0:00:06]}  Rc8 {[%clk 0:00:35]} 38. Kd3 {[%clk 0:00:06]}  g4 {[%clk 0:00:33]} 39. e4 {[%clk 0:00:07]}  Rd8+ {[%clk 0:00:31]} 40. Ke2 {[%clk 0:00:07]}  fxe4 {[%clk 0:00:16]} 41. Bxg4 {[%clk 0:00:07]}  Bd6 {[%clk 0:00:16]} 42. Rb7 {[%clk 0:00:06]}  Rc8 {[%clk 0:00:13]} 43. Rb6 {[%clk 0:00:06]}  Ke7 {[%clk 0:00:10]} 44. Rb7+ {[%clk 0:00:05]}  Kf6 {[%clk 0:00:11]} 45. Rd7 {[%clk 0:00:06]}  Bb8 {[%clk 0:00:08]} 46. Rd2 {[%clk 0:00:06]}  h5 {[%clk 0:00:06]} 47. Bh3 {[%clk 0:00:05]}  h4 {[%clk 0:00:06]} 48. Bg2 {[%clk 0:00:05]}  hxg3 {[%clk 0:00:06]} 49. hxg3 {[%clk 0:00:06]}  Rg8 {[%clk 0:00:07]} 50. Bxe4 {[%clk 0:00:06]}  Rxg3 {[%clk 0:00:07]} 51. Rd3 {[%clk 0:00:05]}  Rg4 {[%clk 0:00:07]} 52. Rf3 {[%clk 0:00:05]}  Bxf4 {[%clk 0:00:07]} 53. Kd3 {[%clk 0:00:05]}  Ke5 {[%clk 0:00:07]} 54. Rf2 {[%clk 0:00:04]}  Rg3+ {[%clk 0:00:07]} 55. Bf3 {[%clk 0:00:04]}  Rh3 {[%clk 0:00:07]} 56. Ke2 {[%clk 0:00:04]}  Bg3 {[%clk 0:00:07]} 57. Rg2 {[%clk 0:00:04]}  Kf4 {[%clk 0:00:08]} 58. Bb7 {[%clk 0:00:04]}  Rh7 {[%clk 0:00:08]} 59. Ba6 {[%clk 0:00:02]}  Rc7 {[%clk 0:00:08]} 60. Bd3 {[%clk 0:00:03]}  e5 {[%clk 0:00:08]} 61. Rg1 {[%clk 0:00:03]}  e4 {[%clk 0:00:06]} 62. Bxe4 {[%clk 0:00:03]}  Re7 {[%clk 0:00:06]} 63. Kd3 {[%clk 0:00:02]}  Rd7+ {[%clk 0:00:06]} 0-1


[Site "https://www.chess.com"]

[Event "Titled Tuesday Blitz March 28 Late 2023"]
[White "Veiga, Jose Francisco R P Neves"]
[Black "Sjugirov, Sanan"]
[WhiteFideId "1930087"]
[BlackFideId "4189302"]
[WhiteElo "2320"]
[BlackElo "2569"]
[Result "0-1"]
[Round "04"]
[TimeControl "180+2"]
[Date "2023.03.28"]
[WhiteClock "0:00:01"]
[BlackClock "0:01:29"]

1. e4 {[%clk 0:03:00]}  e5 {[%clk 0:02:59]} 2. Bc4 {[%clk 0:02:59]}  d6 {[%clk 0:03:00]} 3. Nf3 {[%clk 0:02:58]}  Be7 {[%clk 0:02:54]} 4. d4 {[%clk 0:02:57]}  exd4 {[%clk 0:02:54]} 5. Nxd4 {[%clk 0:02:58]}  Nf6 {[%clk 0:02:54]} 6. Nc3 {[%clk 0:02:57]}  O-O {[%clk 0:02:54]} 7. O-O {[%clk 0:02:56]}  Re8 {[%clk 0:02:48]} 8. f3 {[%clk 0:02:56]}  Nbd7 {[%clk 0:02:48]} 9. Be3 {[%clk 0:02:53]}  Ne5 {[%clk 0:02:45]} 10. Bb3 {[%clk 0:02:52]}  Bf8 {[%clk 0:02:43]} 11. Qd2 {[%clk 0:02:47]}  a6 {[%clk 0:02:41]} 12. a4 {[%clk 0:02:46]}  Bd7 {[%clk 0:02:37]} 13. a5 {[%clk 0:02:46]}  h6 {[%clk 0:02:33]} 14. Nde2 {[%clk 0:02:40]}  Be6 {[%clk 0:02:24]} 15. Nf4 {[%clk 0:02:34]}  Bxb3 {[%clk 0:02:15]} 16. cxb3 {[%clk 0:02:34]}  c6 {[%clk 0:02:11]} 17. Rfd1 {[%clk 0:02:32]}  Nfd7 {[%clk 0:02:07]} 18. Nd3 {[%clk 0:02:12]}  Qf6 {[%clk 0:02:03]} 19. Qf2 {[%clk 0:01:57]}  Nxd3 {[%clk 0:01:56]} 20. Rxd3 {[%clk 0:01:57]}  Ne5 {[%clk 0:01:56]} 21. Rd2 {[%clk 0:01:55]}  Qe6 {[%clk 0:01:57]} 22. Ra3 {[%clk 0:01:42]}  f5 {[%clk 0:01:51]} 23. Bd4 {[%clk 0:00:57]}  fxe4 {[%clk 0:01:48]} 24. fxe4 {[%clk 0:00:58]}  Be7 {[%clk 0:01:42]} 25. Rd1 {[%clk 0:00:49]}  Rf8 {[%clk 0:01:40]} 26. Qg3 {[%clk 0:00:47]}  Rf7 {[%clk 0:01:36]} 27. Ne2 {[%clk 0:00:08]}  Raf8 {[%clk 0:01:34]} 28. Raa1 {[%clk 0:00:08]}  Ng6 {[%clk 0:01:30]} 29. Nc3 {[%clk 0:00:02]}  Bh4 {[%clk 0:01:30]} 30. Qd3 {[%clk 0:00:02]}  Nf4 {[%clk 0:01:30]} 31. Qc4 {[%clk 0:00:01]}  Qg6 {[%clk 0:01:29]} 0-1


[Site "https://www.chess.com"]

[Event "Titled Tuesday Blitz March 28 Late 2023"]
[White "Koksal, Ege"]
[Black "Rustemov, Alexander"]
[WhiteFideId "6317626"]
[BlackFideId "4119002"]
[WhiteElo "2226"]
[BlackElo "2863"]
[Result "0-1"]
[Round "04"]
[TimeControl "180+2"]
[Date "2023.03.28"]
[WhiteClock "0:00:02"]
[BlackClock "0:00:57"]

1. d4 {[%clk 0:03:00]}  d5 {[%clk 0:02:59]} 2. c4 {[%clk 0:03:01]}  c6 {[%clk 0:02:59]} 3. cxd5 {[%clk 0:03:01]}  cxd5 {[%clk 0:02:58]} 4. Bf4 {[%clk 0:03:02]}  Nf6 {[%clk 0:02:58]} 5. e3 {[%clk 0:03:03]}  Nc6 {[%clk 0:02:58]} 6. Nc3 {[%clk 0:03:03]}  a6 {[%clk 0:02:56]} 7. Nf3 {[%clk 0:02:59]}  Bg4 {[%clk 0:02:54]} 8. Be2 {[%clk 0:03:00]}  e6 {[%clk 0:02:53]} 9. O-O {[%clk 0:03:00]}  Bd6 {[%clk 0:02:47]} 10. Bg3 {[%clk 0:02:57]}  O-O {[%clk 0:02:46]} 11. Rc1 {[%clk 0:02:47]}  Rc8 {[%clk 0:02:45]} 12. Bh4 {[%clk 0:02:43]}  Be7 {[%clk 0:02:41]} 13. Bg3 {[%clk 0:02:37]}  Ne4 {[%clk 0:02:34]} 14. Nxe4 {[%clk 0:02:36]}  dxe4 {[%clk 0:02:34]} 15. Nd2 {[%clk 0:02:12]}  Bxe2 {[%clk 0:02:34]} 16. Qxe2 {[%clk 0:02:13]}  Qd5 {[%clk 0:02:33]} 17. a3 {[%clk 0:02:09]}  f5 {[%clk 0:02:30]} 18. Nc4 {[%clk 0:02:03]}  Qb5 {[%clk 0:02:29]} 19. Rc2 {[%clk 0:01:32]}  Na5 {[%clk 0:02:28]} 20. Nxa5 {[%clk 0:01:30]}  Qxa5 {[%clk 0:02:17]} 21. Rfc1 {[%clk 0:01:28]}  Rxc2 {[%clk 0:02:15]} 22. Qxc2 {[%clk 0:01:29]}  Qb5 {[%clk 0:02:09]} 23. h3 {[%clk 0:01:22]}  h6 {[%clk 0:02:06]} 24. Be5 {[%clk 0:01:21]}  Bf6 {[%clk 0:02:03]} 25. Bxf6 {[%clk 0:01:20]}  Rxf6 {[%clk 0:02:03]} 26. b4 {[%clk 0:01:16]}  Kh7 {[%clk 0:01:56]} 27. Qc7 {[%clk 0:01:09]}  Rg6 {[%clk 0:01:47]} 28. Qe5 {[%clk 0:00:55]}  Qe2 {[%clk 0:01:43]} 29. g3 {[%clk 0:00:33]}  Qb2 {[%clk 0:01:36]} 30. Rc8 {[%clk 0:00:27]}  Qb1+ {[%clk 0:01:31]} 31. Kg2 {[%clk 0:00:22]}  Qd1 {[%clk 0:01:31]} 32. Qb8 {[%clk 0:00:12]}  Qf3+ {[%clk 0:01:30]} 33. Kg1 {[%clk 0:00:11]}  Rf6 {[%clk 0:01:18]} 34. Rh8+ {[%clk 0:00:11]}  Kg6 {[%clk 0:01:19]} 35. Qe8+ {[%clk 0:00:11]}  Kg5 {[%clk 0:01:19]} 36. Rg8 {[%clk 0:00:10]}  g6 {[%clk 0:01:07]} 37. Qe7 {[%clk 0:00:10]}  Qd1+ {[%clk 0:01:04]} 38. Kh2 {[%clk 0:00:10]}  Qf1 {[%clk 0:01:00]} 39. h4+ {[%clk 0:00:07]}  Kg4 {[%clk 0:01:01]} 40. Qxf6 {[%clk 0:00:06]}  Qxf2+ {[%clk 0:01:01]} 41. Kh1 {[%clk 0:00:06]}  Kh3 {[%clk 0:01:02]} 42. Qxg6 {[%clk 0:00:02]}  Qg2# {[%clk 0:00:57]} 0-1


[Site "https://www.chess.com"]

[Event "Titled Tuesday Blitz March 28 Late 2023"]
[White "Piesik, Piotr"]
[Black "Shankland, Sam"]
[WhiteFideId "1136194"]
[BlackFideId "2004887"]
[WhiteElo "2311"]
[BlackElo "2638"]
[Result "0-1"]
[Round "04"]
[TimeControl "180+2"]
[Date "2023.03.28"]
[WhiteClock "0:01:19"]
[BlackClock "0:02:16"]

1. Nf3 {[%clk 0:02:43]}  d5 {[%clk 0:02:58]} 2. g3 {[%clk 0:02:43]}  g6 {[%clk 0:02:58]} 3. Bg2 {[%clk 0:02:44]}  Bg7 {[%clk 0:02:58]} 4. d4 {[%clk 0:02:43]}  c6 {[%clk 0:02:59]} 5. O-O {[%clk 0:02:43]}  Nf6 {[%clk 0:02:59]} 6. a4 {[%clk 0:02:42]}  a5 {[%clk 0:02:58]} 7. c4 {[%clk 0:02:43]}  O-O {[%clk 0:02:58]} 8. Qb3 {[%clk 0:02:41]}  Na6 {[%clk 0:02:54]} 9. Bd2 {[%clk 0:02:31]}  dxc4 {[%clk 0:02:50]} 10. Qxc4 {[%clk 0:02:31]}  Nd5 {[%clk 0:02:51]} 11. Nc3 {[%clk 0:02:28]}  Ndb4 {[%clk 0:02:49]} 12. e3 {[%clk 0:02:21]}  Bf5 {[%clk 0:02:47]} 13. Ne1 {[%clk 0:02:14]}  Qd7 {[%clk 0:02:44]} 14. Ne4 {[%clk 0:02:12]}  e5 {[%clk 0:02:41]} 15. Bxb4 {[%clk 0:02:08]}  Nxb4 {[%clk 0:02:40]} 16. Nc5 {[%clk 0:02:08]}  Qe7 {[%clk 0:02:41]} 17. e4 {[%clk 0:01:55]}  Bc8 {[%clk 0:02:38]} 18. d5 {[%clk 0:01:47]}  b6 {[%clk 0:02:35]} 19. Ncd3 {[%clk 0:01:42]}  Ba6 {[%clk 0:02:35]} 20. Qb3 {[%clk 0:01:39]}  Rac8 {[%clk 0:02:24]} 21. Nxb4 {[%clk 0:01:28]}  Qxb4 {[%clk 0:02:24]} 22. Qxb4 {[%clk 0:01:25]}  axb4 {[%clk 0:02:25]} 23. dxc6 {[%clk 0:01:25]}  Rxc6 {[%clk 0:02:23]} 24. Nf3 {[%clk 0:01:21]}  Bxf1 {[%clk 0:02:20]} 25. Bxf1 {[%clk 0:01:22]}  Rd8 {[%clk 0:02:19]} 26. b3 {[%clk 0:01:19]}  Rc3 {[%clk 0:02:16]} 0-1


[Site "https://www.chess.com"]